Cogmind - Beta 13 X1 @@@ ROGUE MODE // 2023.09.14 @ 20:25:59 Player: f3-rnm Result: Destroyed by S-27 Virus with Autogun Performance ------------- Evolutions (6) 3000 Regions Visited (15) 3000 Robots Destroyed (105) 525 Value Destroyed (2686) 2686 Prototype IDs (43) 860 Alien Tech Used (0) 0 Bonus (425) 425 TOTAL SCORE: 10496 Bonus ------- High Alert Combat Kills 85 Follower Combat Kills 40 Met Data Miner 300 Cogmind --------- Core Integrity 0/1150 Matter 176/300 Energy 64/100 System Corruption 6% Temperature Cool (0) Movement Core (50) Location -4/Factory Parts ------- > --- POWER (2) -------- (None) > --- PROPULSION (6) --- (None) > --- UTILITY (9) ------ Experimental Heat Sink Advanced Transmission Jammer Hacking Suite > --- WEAPON (2) ------- (None) > --- INVENTORY (5) ---- Makeshift Cloaking Device Peak State ------------ > --- POWER ------------ Light Nuclear Core Light Nuclear Core > --- PROPULSION ------- Improved VTOL Module Improved Cesium-ion Thruster Improved Cesium-ion Thruster Nuclear Pulse Array > --- UTILITY ---------- Small Storage Unit Advanced Sensor Array Advanced Signal Interpreter Advanced Reaction Control System Light Regenerative Plating Hacking Suite Hacking Suite Improved System Shield Advanced System Shield > --- WEAPON ----------- Makeshift Spear > --- INVENTORY -------- Experimental Heat Sink Advanced Visual Processing Unit Advanced Transmission Jammer Makeshift Cloaking Device Improved Light Armor Plating Coil Gun Heavy Missile Launcher [Rating: 80] Favorites ----------- Power Deuterium Engine Engine Deuterium Engine Power Core Light Nuclear Core Propulsion Light Treads Treads Light Treads Flight Unit Improved Cesium-ion Thruster Utility Large Storage Unit Device Experimental Sensor Array Storage Large Storage Unit Processor Improved Signal Interpreter Hackware Hacking Suite Protection Medium Armor Plating Weapon Heavy Battle Rifle Energy Gun Improved EM Shotgun Energy Cannon Beam Cannon Ballistic Gun Heavy Battle Rifle Launcher Grenade Launcher Impact Weapon Great Maul Piercing Weapon Makeshift Spear Build | -11 -10 -10 -10 -9 -8 -7 -7 -7 -6 -6 -6 -6 -5 -5 -4 ------- Run | Jun Mat Min Exi Min Mat Fac Was Fac Fac Low Low Dat Pro Fac Fac Slots Evolved 12 | . . . . . 4 2 . . 2 . . . . 2 2 Power 1 | . . . . . . . . . . . . . . 1 . Propulsion 4 | . . . . . 2 1 . . . . . . . 1 . Utility 7 | . . . . . 2 1 . . 2 . . . . . 2 Weapon . | . . . . . . . . . . . . . . . . Parts Attached 140 | 6 12 1 1 5 43 10 8 23 3 . 4 . . 12 12 Power 15 | 1 . . 1 . 5 1 . 2 1 . . . . 4 . Engine 11 | 1 . . 1 . 5 1 . 1 . . . . . 2 . Core 4 | . . . . . . . . 1 1 . . . . 2 . Reactor . | . . . . . . . . . . . . . . . . Propulsion 42 | 2 5 . . . 16 6 1 9 . . . . . 2 1 Treads 30 | 2 5 . . . 15 6 1 1 . . . . . . . Leg . | . . . . . . . . . . . . . . . . Wheel . | . . . . . . . . . . . . . . . . Hover . | . . . . . . . . . . . . . . . . Flight 12 | . . . . . 1 . . 8 . . . . . 2 1 Utility 47 | 1 5 . . 1 11 2 4 6 2 . 2 . . 5 8 Device 12 | . . . . . 4 1 2 . . . . . . . 5 Storage 4 | 1 2 . . . . . . 1 . . . . . . . Processor 4 | . . . . . 1 1 . 1 . . 1 . . . . Hackware 7 | . . . . . . . . 2 1 . . . . 3 1 Protection 20 | . 3 . . 1 6 . 2 2 1 . 1 . . 2 2 Artifact . | . . . . . . . . . . . . . . . . Weapon 36 | 2 2 1 . 4 11 1 3 6 . . 2 . . 1 3 Energy Gun 13 | 1 2 . . . 7 1 1 1 . . . . . . . Energy Cannon 2 | . . 1 . . 1 . . . . . . . . . . Ballistic Gun 13 | 1 . . . 3 2 . 2 2 . . 1 . . . 2 Ballistic Cannon . | . . . . . . . . . . . . . . . . Launcher 3 | . . . . 1 1 . . . . . . . . . 1 Special Weapon . | . . . . . . . . . . . . . . . . Impact Weapon 4 | . . . . . . . . 3 . . 1 . . . . Slashing Weapon . | . . . . . . . . . . . . . . . . Piercing Weapon 1 | . . . . . . . . . . . . . . 1 . Special Melee Weapon . | . . . . . . . . . . . . . . . . Unidentified Prototypes 10 | . . . . . 5 . 1 4 . . . . . . . Parts Lost 27 | . 1 1 . 1 3 . . 1 . . 2 . 1 1 16 Power 4 | . 1 . . . . . . . . . . . 1 . 2 Propulsion 8 | . . . . . 2 . . 1 . . . . . 1 4 Utility 11 | . . . . 1 . . . . . . 2 . . . 8 Weapon 4 | . . 1 . . 1 . . . . . . . . . 2 Highest Loss Streak 8 | . 1 1 . 1 1 . . 1 . . 2 . 1 1 8 To Critical Strikes . | . . . . . . . . . . . . . . . . Average Slot Usage (%) 87 | . 82 85 91 100 91 78 86 90 93 93 91 93 88 84 68 Engine 5 | . 4 . 5 14 8 6 7 5 . . . . . 1 . Core 1 | . . . . . . . . 1 6 6 6 6 2 7 6 Treads 23 | . 27 28 28 28 35 30 31 22 . . . . . . . Flight 6 | . . . . . . . . 6 33 33 33 33 33 28 16 Device 4 | . . . . . 8 7 7 7 6 6 4 . . . 4 Storage 8 | . 14 14 14 14 9 7 7 7 6 6 6 6 6 5 4 Processor 2 | . . . . . . 5 7 5 . . . 6 6 5 4 Hackware 4 | . . . . . . . . 2 20 20 20 20 20 17 20 Protection 11 | . 7 14 14 14 12 7 9 13 13 13 12 13 13 9 6 Energy Gun 7 | . 27 14 14 3 7 11 4 . . . . . . . . Energy Cannon 3 | . . 13 14 3 4 . . . . . . . . . . Ballistic Gun 4 | . . . . 18 3 . 9 11 . . . . . . . Naked Turns . | . . . . . . . . . . . . . . . . Heaviest Build 64 | 13 31 32 37 39 64 57 58 56 19 19 19 19 19 22 25 Greatest Support 134 | 40 40 40 40 40 82 104 134 134 22 22 26 26 26 30 30 Greatest Overweight (x) 1 | . . . . . 1 1 . . . . . . . . 1 Average Overweight (x) . | . . . . . . . . . . . . . . . . Largest Inventory Capacity 15 | 8 15 15 15 15 15 15 15 15 8 8 8 8 8 8 8 Average Capacity 12 | 7 9 15 15 15 15 15 15 13 8 8 8 8 8 8 7 Most Carried 15 | 3 10 12 15 15 15 15 15 15 8 8 8 7 8 8 8 Average Carried 12 | 1 7 10 14 14 14 14 14 13 7 8 7 7 7 7 6 Final Capacity 15 | 8 15 15 15 15 15 15 15 8 8 8 8 8 8 8 5 Final Carried 15 | 1 10 12 15 15 15 15 15 8 8 8 7 7 8 8 1 Class Distribution -------------------- 48% | Mutant 29% | Scavenger-Mutant 21% | Hacker-Sprinter Dominant Class ---------------- Mutant | -10/Materials Mutant | -10/Mines Mutant | -10/Exiles Mutant | -9/Mines Scavenger-Mutant | -8/Materials Scavenger-Mutant | -7/Factory Scavenger-Mutant | -7/Waste Mutant | -7/Factory Hacker-Sprinter | -6/Factory Hacker-Sprinter | -6/Lower Caves Hacker-Sprinter | -6/Lower Caves Hacker-Sprinter | -6/Data Miner Hacker-Sprinter | -5/Proximity Caves Hacker-Sprinter | -5/Factory Hacker-Sprinter | -4/Factory Resources | -11 -10 -10 -10 -9 -8 -7 -7 -7 -6 -6 -6 -6 -5 -5 -4 ----------- Run | Jun Mat Min Exi Min Mat Fac Was Fac Fac Low Low Dat Pro Fac Fac Matter Collected 2044 | 180 183 10 . 199 613 . 186 469 70 10 . . 12 100 12 Remotely . | . . . . . . . . . . . . . . . . Salvage Created 3909 | . 349 224 125 293 1780 . . 701 140 . 41 . . 213 43 Parts 229 | . 21 18 7 11 96 . . 54 2 . . . . 15 5 Haulers Intercepted 9 | . 1 . . . 5 . . 2 1 . . . . . . Recyclers Shooed 1 | . . 1 . . . . . . . . . . . . . Parts Field Recycled . | . . . . . . . . . . . . . . . . Retrieved Matter . | . . . . . . . . . . . . . . . . Parts Self-Destructed . | . . . . . . . . . . . . . . . . Prevented . | . . . . . . . . . . . . . . . . Kills | -11 -10 -10 -10 -9 -8 -7 -7 -7 -6 -6 -6 -6 -5 -5 -4 ------- Run | Jun Mat Min Exi Min Mat Fac Was Fac Fac Low Low Dat Pro Fac Fac Combat Hostiles Destroyed 60 | . 5 7 . 8 29 . . 7 . . . . . 1 3 Melee 1 | . . . . . . . . . . . . . . 1 . Guns 28 | . 4 2 . 7 9 . . 6 . . . . . . . Cannons 23 | . . 5 . 1 17 . . . . . . . . . . AOE 7 | . . . . . 3 . . 1 . . . . . . 3 Classes Destroyed 15 | . 5 1 . 2 5 . . 1 . . 1 . . . . Worker 14 | . 1 1 . . . . . 9 . . . . . 3 . Builder 3 | . . . . . 1 . . 1 . . . . . 1 . Tunneler 3 | . . . . . 3 . . . . . . . . . . Hauler 9 | . 1 . . . 5 . . 2 1 . . . . . . Recycler 3 | . . . . 1 1 . . 1 . . . . . . . Operator 4 | . 1 . . . 1 . . 1 . . . . . . 1 Watcher 12 | . 2 . . . 4 . . 3 1 . . . . 2 . Swarmer 15 | . . 3 . . 7 . . 2 . . . . . . 3 Grunt 28 | . 5 4 . 5 12 . . 2 . . . . . . . Sentry 7 | . . . . . 6 . . 1 . . . . . . . Hunter 4 | . . . . . 3 . . . . . . . . 1 . Programmer 2 | . . . . . . . . 2 . . . . . . . Heavy 1 | . . . . . 1 . . . . . . . . . . Samaritan 1 | . . . . . . . . . . . 1 . . . . Assembled 3 | . . . . 3 . . . . . . . . . . . Best Kill Streak 5 | . 2 3 . 4 5 . . 4 1 . . . . 4 3 Combat Bots Only 5 | . 2 3 . 3 5 . . 3 . . . . . 1 3 Max Kills in Single Turn 4 | . 1 2 . 2 3 . . 4 1 . 1 . . 1 3 Gunslinging . | . . . . . . . . . . . . . . . . Exploded 3 | . . . . . 3 . . 1 . . . . . . 3 Melee 1 | . . . . . . . . . . . . . . 1 . Uniques/NPCs Destroyed . | . . . . . . . . . . . . . . . . Combat | -11 -10 -10 -10 -9 -8 -7 -7 -7 -6 -6 -6 -6 -5 -5 -4 -------- Run | Jun Mat Min Exi Min Mat Fac Was Fac Fac Low Low Dat Pro Fac Fac Damage Taken 6269 | . 395 152 . 338 1306 . . 848 89 137 202 . 117 184 2501 Core 1654 | . 79 16 . 55 107 . . 105 20 26 43 . 32 20 1151 Absorbed by Shields . | . . . . . . . . . . . . . . . . Redirected to Shielding 169 | . . . . . . . . . 22 70 55 . . . 22 Ignored by Resistances 23 | . . . . . 23 . . . . . . . . . . Regen/Repaired (Parts) 50 | . . . . . . . . . . . . . . . 50 Core Remaining (%) 81 | 100 . . . 40 80 . . 85 . . . . 85 98 . Volleys Fired 246 | . 33 13 5 27 105 1 1 52 . . 4 . . . 5 Largest 2 | . 2 2 2 2 2 1 2 2 . . 1 . . . 1 Hottest 120 | . 100 110 110 110 120 45 66 66 . . 30 . . . 39 Shots Fired 383 | . 66 26 10 43 128 1 2 98 . . 4 . . . 5 Gun 304 | . 66 16 5 37 73 1 2 98 . . 4 . . . 2 Cannon 75 | . . 10 5 6 54 . . . . . . . . . . Launcher 4 | . . . . . 1 . . . . . . . . . 3 Special . | . . . . . . . . . . . . . . . . Kinetic 170 | . . . . 33 31 . 2 98 . . 4 . . . 2 Thermal 173 | . 66 26 10 10 61 . . . . . . . . . . Explosive 4 | . . . . . 1 . . . . . . . . . 3 Electromagnetic 36 | . . . . . 35 1 . . . . . . . . . Robot Hit Streak 31 | . 10 6 3 15 31 6 . 9 . . 4 . . . 1 Robot Miss Streak 8 | . 2 2 2 4 8 1 . 4 . . 1 . . . 4 Penetration Max 1 | . . . . 1 1 . . . . . . . . . . Secondary Targets 1 | . . . . . 1 . . . . . . . . . . Max Gunslinging Chain 1 | . . . . . 1 . . . . . . . . . . Shots Hit Robots 263 | . 45 17 4 25 87 1 . 58 4 . 4 . . 11 7 Core Hits 153 | . 17 12 4 17 60 . . 31 . . . . . 5 7 Critical Kills . | . . . . . . . . . . . . . . . . Critical Parts Destroyed 3 | . . . . 1 . . . 1 1 . . . . . . Critical Strikes 6 | . 1 . . 1 1 . . 1 1 . . . . . 1 Burn 2 | . 1 . . . 1 . . . . . . . . . . Destroy 2 | . . . . 1 . . . 1 . . . . . . . Smash 1 | . . . . . . . . . 1 . . . . . . Impale 1 | . . . . . . . . . . . . . . . 1 Melee Attacks 57 | . . . . . . . . 4 8 . 2 . . 26 17 Impact 14 | . . . . . . . . 4 8 . 2 . . . . Slashing . | . . . . . . . . . . . . . . . . Piercing 43 | . . . . . . . . . . . . . . 26 17 Sneak Attacks 12 | . . . . . . . . . 2 . 1 . . 5 4 Combat Hostiles 6 | . . . . . . . . . 1 . . . . 1 4 Follow-up Attacks . | . . . . . . . . . . . . . . . . Damage Inflicted 8167 | . 579 263 88 609 3132 18 . 1716 269 . 184 . . 575 734 Guns 3654 | . 559 139 29 496 979 18 . 1351 . . 83 . . . . Cannons 2164 | . . 124 59 105 1876 . . . . . . . . . . Explosions 1003 | . . . . . 277 . . 365 . . . . . . 361 Melee 1311 | . . . . . . . . . 269 . 101 . . 575 366 Ramming 35 | . 20 . . 8 . . . . . . . . . . 7 Kinetic 2384 | . . . . 458 492 . . 1351 . . 83 . . . . Thermal 3431 | . 559 263 88 143 2013 . . 365 . . . . . . . Explosive 545 | . . . . . 184 . . . . . . . . . 361 Electromagnetic 461 | . . . . . 443 18 . . . . . . . . . Impact 370 | . . . . . . . . . 269 . 101 . . . . Slashing . | . . . . . . . . . . . . . . . . Piercing 941 | . . . . . . . . . . . . . . 575 366 Highest Corruption 6 | . . . . . 2 . . 2 . . 5 5 5 . 6 Average Corruption 2 | . . . . . 1 . . 1 . . 3 5 5 . 4 Corruption Purged . | . . . . . . . . . . . . . . . . Corruption Blocked . | . . . . . . . . . . . . . . . . Effects 33 | . . . . . 17 . . 8 . . . . 5 . 3 Message Errors 11 | . . . . . 3 . . 5 . . . . 2 . 1 Matter Fused 5 | . . . . . 3 . . . . . . . 2 . . Heat Flow Errors 5 | . . . . . 4 . . 1 . . . . . . . Energy Discharges 5 | . . . . . 3 . . . . . . . 1 . 1 Parts Rejected 1 | . . . . . . . . . . . . . . . 1 Parts Fused 2 | . . . . . 1 . . 1 . . . . . . . Data Loss (minor) 2 | . . . . . 1 . . 1 . . . . . . . Alerts 1 | . . . . . 1 . . . . . . . . . . Weapon Failures 1 | . . . . . 1 . . . . . . . . . . Overload Shots . | . . . . . . . . . . . . . . . . Overflow Damage 546 | . . . . . 64 . . 82 153 . 96 . . 100 51 Projectiles 64 | . . . . . 64 . . . . . . . . . . Explosions 82 | . . . . . . . . 82 . . . . . . . Melee 400 | . . . . . . . . . 153 . 96 . . 100 51 Knockbacks 3 | . 1 . . . . . . . 2 . . . . . . Impact 3 | . 1 . . . . . . . 2 . . . . . . Kinetic . | . . . . . . . . . . . . . . . . Secondary . | . . . . . . . . . . . . . . . . Self-Inflicted Damage 3 | . . . . . . . . . . . . . . . 3 Shots . | . . . . . . . . . . . . . . . . Rammed 14 | . 8 . . 2 . . . . . . . . . . 4 Targets Rammed 14 | . 8 . . 2 . . . . . . . . . . 4 Kicked . | . . . . . . . . . . . . . . . . Crushed . | . . . . . . . . . . . . . . . . Highest Temperature 466 | . 353 233 84 291 466 8 12 229 . 1 84 42 42 273 22 Average Temperature 83 | . 106 85 31 111 106 6 8 27 . 1 39 22 18 116 9 Received Heat Transfer 1606 | . 219 96 . 168 558 . . 234 6 9 . . 30 99 187 Effects 8 | . 1 . . 2 4 . . . . . . . . 1 . Shutdowns 1 | . 1 . . . . . . . . . . . . . . Energy Bleed 2 | . . . . . 2 . . . . . . . . . . Interference 3 | . . . . 2 . . . . . . . . . 1 . Matter Decay 1 | . . . . . 1 . . . . . . . . . . Short Circuit 1 | . . . . . 1 . . . . . . . . . . Siege Activations . | . . . . . . . . . . . . . . . . Robots Corrupted . | . . . . . . . . . . . . . . . . Combat Hostiles . | . . . . . . . . . . . . . . . . Parts Fried 5 | . . . . . 3 . . . 2 . . . . . . Impact Corruptions 13 | . . . . . . . . . 5 . 8 . . . . Robots Melted 2 | . 2 . . . . . . . . . . . . . . Combat Hostiles 1 | . 1 . . . . . . . . . . . . . . Parts Melted 19 | . 5 . . 1 13 . . . . . . . . . . Heat Transferred 7698 | . 1739 666 185 333 4525 . . 250 . . . . . . . Parts Sabotaged . | . . . . . . . . . . . . . . . . Parts Stolen . | . . . . . . . . . . . . . . . . Parts Stripped . | . . . . . . . . . . . . . . . . Power Chain Reactions 1 | . . . . . 1 . . . . . . . . . . Missiles Intercepted . | . . . . . . . . . . . . . . . . Alert | -11 -10 -10 -10 -9 -8 -7 -7 -7 -6 -6 -6 -6 -5 -5 -4 ------- Run | Jun Mat Min Exi Min Mat Fac Was Fac Fac Low Low Dat Pro Fac Fac Peak Influence 780 | . 159 111 . 145 539 220 7 168 248 . . . . 413 780 Initial 220 | . . 16 . . . 220 7 . 67 . . . . 56 104 Average 147 | . 61 69 . 80 274 188 2 57 159 . . . . 202 359 Maximum Alert Level 3 | . . . . . 2 1 . . 1 . . . . 2 3 Low Security (%) 71 | 100 100 100 . 100 44 15 100 100 61 . . . . 52 26 Level 1 18 | . . . . . 25 84 . . 38 . . . . 46 34 Level 2 9 | . . . . . 30 . . . . . . . . 1 26 Level 3 . | . . . . . . . . . . . . . . . 12 Level 4 . | . . . . . . . . . . . . . . . . Level 5 . | . . . . . . . . . . . . . . . . High Security . | . . . . . . . . . . . . . . . . Max Security . | . . . . . . . . . . . . . . . . Squads Dispatched 20 | . 2 . . . 5 . . 4 . . . . . 5 4 Investigation 8 | . . . . . 2 . . . . . . . . 4 2 Extermination 4 | . . . . . . . . 3 . . . . . . 1 Reinforcement 8 | . 2 . . . 3 . . 1 . . . . . 1 1 Assault . | . . . . . . . . . . . . . . . . Garrison . | . . . . . . . . . . . . . . . . Intercept . | . . . . . . . . . . . . . . . . Searches Triggered . | . . . . . . . . . . . . . . . . Data Miner Redirects 3 | . . . . . . . . . . . . . . 2 1 Construction Impeded 1 | . . . . . . . . . . . . . . 1 . Haulers Reinforced 1 | . . . . . . . . 1 . . . . . . . Active Scanning Responses . | . . . . . . . . . . . . . . . . Cargo Convoy Interrupts . | . . . . . . . . . . . . . . . . Stealth | -11 -10 -10 -10 -9 -8 -7 -7 -7 -6 -6 -6 -6 -5 -5 -4 --------- Run | Jun Mat Min Exi Min Mat Fac Was Fac Fac Low Low Dat Pro Fac Fac Distress Signals 6 | . . . . . 2 . . 1 . . . . . . 3 Communications Jammed . | . . . . . . . . . . . . . . . . Distress Signals . | . . . . . . . . . . . . . . . . Times Spotted 199 | . 13 7 . 9 37 1 . 23 4 9 6 . 8 24 58 Peak Tracking Total 15 | . 6 3 . 3 5 1 . 4 2 10 4 . 6 5 15 Tactical Retreats 32 | . . . . 1 3 . . 3 2 1 1 . 4 6 11 Traps | -11 -10 -10 -10 -9 -8 -7 -7 -7 -6 -6 -6 -6 -5 -5 -4 ------- Run | Jun Mat Min Exi Min Mat Fac Was Fac Fac Low Low Dat Pro Fac Fac Traps Triggered 20 | . 3 . . . 6 4 . 2 2 . . . . 3 . Indirectly . | . . . . . . . . . . . . . . . . Trap Hack Attempts . | . . . . . . . . . . . . . . . . Triggered . | . . . . . . . . . . . . . . . . Disarmed . | . . . . . . . . . . . . . . . . Reprogrammed . | . . . . . . . . . . . . . . . . Reused . | . . . . . . . . . . . . . . . . Traps Extracted . | . . . . . . . . . . . . . . . . Installed . | . . . . . . . . . . . . . . . . Triggered . | . . . . . . . . . . . . . . . . Machines | -11 -10 -10 -10 -9 -8 -7 -7 -7 -6 -6 -6 -6 -5 -5 -4 ---------- Run | Jun Mat Min Exi Min Mat Fac Was Fac Fac Low Low Dat Pro Fac Fac Machines Disabled 7 | . . . . 1 . . . 4 . . 1 . . . 1 Max in Single Turn 4 | . . . . 1 . . . 4 . . 1 . . . 1 Garrison Access 6 | . . . . . 1 . . 1 . . . . . 4 . Machines Repaired . | . . . . . . . . . . . . . . . . Machines Sabotaged . | . . . . . . . . . . . . . . . . Overloaded Fab Kills . | . . . . . . . . . . . . . . . . Hacking | -11 -10 -10 -10 -9 -8 -7 -7 -7 -6 -6 -6 -6 -5 -5 -4 --------- Run | Jun Mat Min Exi Min Mat Fac Was Fac Fac Low Low Dat Pro Fac Fac Machines Accessed 53 | . . . 2 . 11 . . 9 4 . . 4 1 18 4 Terminals 34 | . . . . . 7 . . 6 4 . . . 1 12 4 Fabricators 2 | . . . . . . . . . . . . . . 2 . Repair Stations 2 | . . . . . 1 . . 1 . . . . . . . Recycling Units 2 | . . . . . 1 . . 1 . . . . . . . Scanalyzers 1 | . . . . . 1 . . . . . . . . . . Garrison Access 6 | . . . . . 1 . . 1 . . . . . 4 . Total Hacks 147 | . . . 3 . 29 . . 11 7 . . 29 1 45 22 Successful 81 | . . . 3 . 9 . . 7 3 . . 29 1 21 8 Failed 66 | . . . . . 20 . . 4 4 . . . . 24 14 Catastrophic 15 | . . . . . 4 . . 4 . . . . . 4 3 Database Lockouts . | . . . . . . . . . . . . . . . . Manual 50 | . . . 4 . 10 . . 4 4 . . . . 16 12 Terminals 88 | . . . . . 16 . . 7 7 . . . 1 35 22 Fabricators 4 | . . . . . . . . . . . . . . 4 . Repair Stations 5 | . . . . . 3 . . 2 . . . . . . . Recycling Units 2 | . . . . . 1 . . 1 . . . . . . . Scanalyzers 6 | . . . . . 6 . . . . . . . . . . Garrison Access 10 | . . . . . 3 . . 1 . . . . . 6 . Terminal Hacks 63 | . . . 3 . 3 . . 3 3 . . 29 1 13 8 Record 15 | . . . 2 . . . . . . . . 11 1 1 . Part Schematic 13 | . . . . . . . . . 1 . . 10 . 1 1 Robot Schematic 5 | . . . . . . . . . . . . 5 . . . Prototype ID Bank 3 | . . . . . . . . . . . . 3 . . . Level Access Points 1 | . . . . . . . . . . . . . . . 1 Branch Access Points 2 | . . . . . . . . . 1 . . . . . 1 Machine Index 1 | . . . . . . . . 1 . . . . . . . Terminal Index 3 | . . . . . . . . . 1 . . . . 1 1 Fabricator Index 2 | . . . . . . . . . . . . . . 1 1 Alert Level 5 | . . . . . 1 . . 1 . . . . . 3 . Unreport Threat 1 | . . . . . . . . . . . . . . 1 . Locate Traps 1 | . . . . . . . . . . . . . . 1 . Patrol Status 1 | . . . . . 1 . . . . . . . . . . Recall Investigation 2 | . . . . . . . . . . . . . . 2 . Recall Reinforcements 1 | . . . . . . . . 1 . . . . . . . Hauler Manifests 2 | . . . . . 1 . . . . . . . . 1 . Registered Components 1 | . . . . . . . . . . . . . . . 1 Registered Prototypes 1 | . . . . . . . . . . . . . . 1 . Zone Layout 2 | . . . . . . . . . . . . . . . 2 Derelict Proto ID Bank 1 | . . . 1 . . . . . . . . . . . . Fabricator Hacks 4 | . . . . . . . . . . . . . . 4 . Load Schematic 2 | . . . . . . . . . . . . . . 2 . Build 2 | . . . . . . . . . . . . . . 2 . Repair Station Hacks 3 | . . . . . 1 . . 2 . . . . . . . Scan Component 2 | . . . . . 1 . . 1 . . . . . . . Repair 1 | . . . . . . . . 1 . . . . . . . Recycling Unit Hacks 2 | . . . . . 1 . . 1 . . . . . . . Report Inventory 2 | . . . . . 1 . . 1 . . . . . . . Scanalyzer 3 | . . . . . 3 . . . . . . . . . . Insert Component 1 | . . . . . 1 . . . . . . . . . . Analyze 2 | . . . . . 2 . . . . . . . . . . Garrison Access Hacks 6 | . . . . . 1 . . 1 . . . . . 4 . Seal Access 6 | . . . . . 1 . . 1 . . . . . 4 . Unauthorized Hacks . | . . . . . . . . . . . . . . . . Terminals . | . . . . . . . . . . . . . . . . Fabricators . | . . . . . . . . . . . . . . . . Repair Stations . | . . . . . . . . . . . . . . . . Recycling Units . | . . . . . . . . . . . . . . . . Scanalyzers . | . . . . . . . . . . . . . . . . Garrison Access . | . . . . . . . . . . . . . . . . Data Cores Recovered 1 | . . . . . . . . 1 . . . . . . . Used . | . . . . . . . . . . . . . . . . Hacking Detections 34 | . . . . . 10 . . 6 3 . . . . 12 3 Full Trace Events 8 | . . . . . 2 . . . . . . . . 4 2 Feedback Events . | . . . . . . . . . . . . . . . . Feedback Blocked . | . . . . . . . . . . . . . . . . Robot Schematics Acquired 5 | . . . . . . . . . . . . 5 . . . Robots Built . | . . . . . . . . . . . . . . . . Authchips . | . . . . . . . . . . . . . . . . Time . | . . . . . . . . . . . . . . . . Total Robot Build Rating . | . . . . . . . . . . . . . . . . Part Schematics Acquired 13 | . . . . . . . . . 1 . . 10 . 1 1 Parts Built 3 | . . . . . . . . . . . . . . 3 . Authchips . | . . . . . . . . . . . . . . . . Time 86 | . . . . . . . . . . . . . . 86 . Total Part Build Rating 11 | . . . . . . . . . . . . . . 11 . Parts Repaired 1 | . . . . . . . . 1 . . . . . . . Time 17 | . . . . . . . . 17 . . . . . . . Parts Recycled . | . . . . . . . . . . . . . . . . Recycled Matter . | . . . . . . . . . . . . . . . . Retrieved Matter . | . . . . . . . . . . . . . . . . Retrieved Components . | . . . . . . . . . . . . . . . . Parts Scanalyzed 1 | . . . . . 1 . . . . . . . . . . Part Schematics Acquired . | . . . . . . . . . . . . . . . . Parts Damaged . | . . . . . . . . . . . . . . . . Bothacking | -11 -10 -10 -10 -9 -8 -7 -7 -7 -6 -6 -6 -6 -5 -5 -4 ------------ Run | Jun Mat Min Exi Min Mat Fac Was Fac Fac Low Low Dat Pro Fac Fac Used RIF Installer . | . . . . . . . . . . . . . . . . Robots Hacked . | . . . . . . . . . . . . . . . . Non-combat . | . . . . . . . . . . . . . . . . Combat . | . . . . . . . . . . . . . . . . Robot Hacks Applied . | . . . . . . . . . . . . . . . . Relay Couplers Released . | . . . . . . . . . . . . . . . . Fabnet Peak Effective % . | . . . . . . . . . . . . . . . . Robots Rewired . | . . . . . . . . . . . . . . . . Allies Hacked . | . . . . . . . . . . . . . . . . Hacks Repelled . | . . . . . . . . . . . . . . . . Allies | -11 -10 -10 -10 -9 -8 -7 -7 -7 -6 -6 -6 -6 -5 -5 -4 -------- Run | Jun Mat Min Exi Min Mat Fac Was Fac Fac Low Low Dat Pro Fac Fac Total Allies 4 | . . . . . . . . . 3 . . . 1 . . Largest Group 3 | . . . . . . . . . 3 . . . 1 . . Highest-Rated Group 96 | . . . . . . . . . 93 . . . 96 . . Highest-Rated Ally 96 | . . . . . . . . . 31 . . . 96 . . Total Orders . | . . . . . . . . . . . . . . . . Ally Attacks 11 | . . . . . . . . . 8 . . . 3 . . Total Damage 261 | . . . . . . . . . 169 . . . 92 . . Kills 1 | . . . . . . . . . 1 . . . . . . Allies Corrupted . | . . . . . . . . . . . . . . . . Allies Melted . | . . . . . . . . . . . . . . . . Intel | -11 -10 -10 -10 -9 -8 -7 -7 -7 -6 -6 -6 -6 -5 -5 -4 ------- Run | Jun Mat Min Exi Min Mat Fac Was Fac Fac Low Low Dat Pro Fac Fac Robot Analysis Total . | . . . . . . . . . . . . . . . . Derelict Logs Recovered 3 | . . 1 . . . . . . . 2 . . . . . Drone Launches . | . . . . . . . . . . . . . . . . Drone Recoveries . | . . . . . . . . . . . . . . . . Exploration | -11 -10 -10 -10 -9 -8 -7 -7 -7 -6 -6 -6 -6 -5 -5 -4 ------------- Run | Jun Mat Min Exi Min Mat Fac Was Fac Fac Low Low Dat Pro Fac Fac Turns Passed 9496 | 66 721 503 745 473 2166 473 1081 1397 317 105 109 20 239 643 438 Spaces Moved 9806 | 38 353 288 451 208 1150 275 678 1310 738 387 341 79 606 1704 1200 Core 137 | 7 . . . . . . . . . . . . . . 130 Treads 4010 | 31 353 288 451 208 1150 275 678 576 . . . . . . . Legs . | . . . . . . . . . . . . . . . . Wheels . | . . . . . . . . . . . . . . . . Hover . | . . . . . . . . . . . . . . . . Flight 5659 | . . . . . . . . 734 738 387 341 79 606 1704 1070 Fastest Speed 20 | 50 160 160 160 160 155 155 155 26 27 27 20 20 20 24 27 Average Speed 80 | 139 160 160 160 160 157 158 155 83 27 27 25 25 27 27 29 Slowest Speed 245 | 160 160 160 160 160 245 237 156 155 27 27 27 27 30 30 100 Overloaded Moves 81 | . . . . . . . . . . . 48 16 17 . . Propulsion Burnouts . | . . . . . . . . . . . . . . . . Robots Hopped 34 | . . . . . . . . 1 2 . 3 . 5 6 17 Cave-ins Triggered . | . . . . . . . . . . . . . . . . Exploration Rate (%) 51 | 3 46 45 90 50 77 8 97 42 18 64 54 69 82 45 29 Regions Visited 15 Branch Regions 7 Pre-discovered Areas 3 | . . . 1 . . . . . . 1 . 1 . . . Known Exits Taken 6 | . . . . . . . . 1 1 . 1 1 1 1 . Unknown Exits Taken 7 | 1 1 1 1 1 1 . . . . 1 . . . . . Scrap Searched 7 | . . 1 . 1 . . . . . 4 . . 1 . . Spaces Dug 13 | . . . . . . . . 3 . . . . . 5 5 Terrain Destroyed 64 | . . . . . 20 . . 18 . . . . . 5 21 Melee 13 | . . . . . . . . 3 . . . . . 5 5 Projectile 1 | . . . . . 1 . . . . . . . . . . AOE 50 | . . . . . 19 . . 15 . . . . . . 16 Terrain Rammed . | . . . . . . . . . . . . . . . . Walls Destroyed . | . . . . . . . . . . . . . . . . Machines Disabled . | . . . . . . . . . . . . . . . . Actions | -11 -10 -10 -10 -9 -8 -7 -7 -7 -6 -6 -6 -6 -5 -5 -4 --------- Run | Jun Mat Min Exi Min Mat Fac Was Fac Fac Low Low Dat Pro Fac Fac Total 10889 | 52 436 304 466 303 1376 313 707 1516 839 386 349 78 671 1854 1239 Wait 445 | . 14 . . 59 32 15 . 76 83 . . . 70 86 10 Move 9726 | 37 352 287 450 207 1149 275 677 1307 733 386 334 78 596 1692 1166 Hop 32 | . . . . . . . . 1 2 . 3 . 4 5 17 Pick Up 91 | 8 12 3 7 2 17 7 3 13 5 . 1 . 1 8 4 Fast Attach 54 | . 7 . . . 18 6 7 9 1 . . . . 5 1 Attach 49 | 6 . 1 1 1 9 3 1 10 2 . 3 . . 3 9 Detach 7 | . . . . . 1 . . 2 1 . 1 . . . 2 Swap 37 | . 5 . . 4 16 1 . 4 . . 1 . . 4 2 Drop 86 | 1 5 . 3 1 29 5 9 20 4 . . . . 7 2 Fire 246 | . 33 13 5 27 105 1 1 52 . . 4 . . . 5 Melee 57 | . . . . . . . . 4 8 . 2 . . 26 17 Ram 4 | . . . . . . . . . . . . . . . 4 Kick . | . . . . . . . . . . . . . . . . Crush 10 | . 8 . . 2 . . . . . . . . . . . Escape Stasis 36 | . . . . . . . . 18 . . . . . 18 . Rewire 9 | . . . . . . . 9 . . . . . . . . Trap . | . . . . . . . . . . . . . . . . Miscellaneous . | . . . . . . . . . . . . . . . . Route ------- -11/Junkyard -10/Materials -10/Mines -10/Exiles -9/Mines -8/Materials (discovered 3 exits: *Fac x2 / [*Sto]) -7/Factory (discovered 2 exits: *Fac / *Low) -7/Waste -7/Factory (discovered 4 exits: *Fac x3 / *Low) -6/Factory (discovered 4 exits: *Low x2 / Ext x2) -6/Lower Caves -6/Lower Caves (discovered 2 exits: *Fac / *Dat) -6/Data Miner -5/Proximity Caves -5/Factory (discovered 4 exits: *Fac x4) -4/Factory (discovered 7 exits: Res x4 / *Upp x2 / Arm) History --------- Turn | Location | Event 24 | -11/Junkyard | Discovered new exit (range 15) 67 | -11/Junkyard | Entered Materials 308 | -10/Materials | Build established: Mutant 473 | -10/Materials | Discovered new exit (range 9) 788 | -10/Materials | Entered Mines 1134 | -10/Mines | Learned 2 Materials zone layouts 1222 | -10/Mines | Deemed a non-threat by the Exiles lab entrance 1284 | -10/Mines | Discovered new exit (range 5) 1291 | -10/Mines | Entered Exiles 1291 | -10/Exiles | Found Exiles lab destroyed 1507 | -10/Exiles | Opened EX-Vault 1521 | -10/Exiles | Found Gui. Plasma Cannon 1951 | -10/Exiles | Learned location of Zion (-7) 2022 | -10/Exiles | Discovered new exit (range 10) 2036 | -10/Exiles | Entered Mines 2160 | -9/Mines | Core integrity fell below 50% 2241 | -9/Mines | Found a damaged Exp. Sensor Array with a note attached 2244 | -9/Mines | Found Prototype Device 2251 | -9/Mines | Assembled infested the area 2256 | -9/Mines | Assisted by a Guerilla fighting off Assembled 2485 | -9/Mines | Discovered new exit (range 15) 2509 | -9/Mines | Entered Materials 2509 | -8/Materials | Evolved 4 slots: Propulsion x2, Utility x2 2539 | -8/Materials | Identified Exp. Sensor Array 3245 | -8/Materials | Discovered new exit (range 11) 3538 | -8/Materials | Discovered new exit (range 15) 3579 | -8/Materials | Build established: Scavenger-Mutant 3601 | -8/Materials | Discovered new exit (range 14) 4675 | -8/Materials | Entered Factory 4675 | -7/Factory | Evolved 2 slots: Propulsion x1, Utility x1 4883 | -7/Factory | Discovered new exit (range 8) 4894 | -7/Factory | Identified exit to Lower Caves 4897 | -7/Factory | Discovered new exit (range 16) 4991 | -7/Factory | Identified exit to Factory 5148 | -7/Factory | Sucked down chute 5148 | -7/Factory | Entered Waste 5148 | -7/Waste | The area was eerily silent 5292 | -7/Waste | Discovered new exit (range 15) 5321 | -7/Waste | Identified exit to Factory 6229 | -7/Waste | Entered Factory 6242 | -7/Factory | Build established: Mutant 6525 | -7/Factory | Discovered exit to Factory (range 15) 7485 | -7/Factory | Discovered exit to Factory (range 4) 7505 | -7/Factory | Discovered exit to Lower Caves (range 14) 7582 | -7/Factory | Repaired Broken Surge Thruster 7620 | -7/Factory | Discovered exit to Factory (range 14) 7626 | -7/Factory | Entered another Factory area 7626 | -6/Factory | Evolved 2 slots: Utility x2 7649 | -6/Factory | Build established: Hacker-Sprinter 7738 | -6/Factory | Identified exit to Lower Caves 7738 | -6/Factory | Identified exit to Extension 7824 | -6/Factory | Allied Derelicts emerged from ambush trap array 7943 | -6/Factory | Entered Lower Caves 8027 | -6/Lower Caves | Attracted the attention of an 0b10 outpost 8046 | -6/Lower Caves | Discovered new exit (range 8) 8046 | -6/Lower Caves | Learned 8 Factory zone layouts 8048 | -6/Lower Caves | Entered another Lower Caves area 8052 | -6/Lower Caves | Discovered new exit (range 6) 8142 | -6/Lower Caves | P-60 Hacker assimilated allied NP-L4M(k) 8144 | -6/Lower Caves | Discovered new exit (range 5) 8151 | -6/Lower Caves | Attacked by a delusional Derelict stockpiling parts 8157 | -6/Lower Caves | Identified exit to Data Miner 8157 | -6/Lower Caves | Entered Data Miner 8157 | -6/Data Miner | Discovered new exit (range 6) 8162 | -6/Data Miner | Met Data Miner 8167 | -6/Data Miner | Learned location of Section 7 (-3) 8167 | -6/Data Miner | Acquired the access code to Warlord's prototype stash 8171 | -6/Data Miner | Received God Mode back door access code from Data Miner 8177 | -6/Data Miner | Identified exit to Proximity Caves 8177 | -6/Data Miner | Entered Proximity Caves 8244 | -5/Proximity Caves | Spotted B-75 Beast 8411 | -5/Proximity Caves | Discovered new exit (range 13) 8415 | -5/Proximity Caves | Identified exit to Factory 8416 | -5/Proximity Caves | Entered Factory 8416 | -5/Factory | Evolved 2 slots: Power x1, Propulsion x1 8417 | -5/Factory | Identified exit to Factory 8473 | -5/Factory | Spotted B-75 Beast 8617 | -5/Factory | Incoming investigation squad redirected 8627 | -5/Factory | Fabricated Lgt. Nuclear Core? 8645 | -5/Factory | Discovered exit to Factory (range 9) 8919 | -5/Factory | Discovered exit to Factory (range 16) 8980 | -5/Factory | Incoming investigation squad redirected 9008 | -5/Factory | Fabricated Lgt. Regenerative Plating? 9051 | -5/Factory | Discovered exit to Factory (range 10) 9059 | -5/Factory | Entered another Factory area 9059 | -4/Factory | Evolved 2 slots: Utility x2 9182 | -4/Factory | Spotted B-86 Titan 9183 | -4/Factory | Identified exit to Upper Caves 9183 | -4/Factory | Identified exit to Armory 9337 | -4/Factory | Identified exit to Research 9358 | -4/Factory | Incoming investigation squad redirected 9439 | -4/Factory | Core integrity fell below 50% 9448 | -4/Factory | Lost 8 parts (3n4u1w) 9477 | -4/Factory | Core integrity fell below 20% 9497 | -4/Factory | Destroyed by S-27 Virus with Autogun Last Messages --------------- 09416_ Hacking Suite destroyed. 09416_ VTOL Module destroyed. 09417_ Imp. Cesium-ion Thruster destroyed. 09418_ System corrupted: Imp. Cesium-ion Thruster rejected. 09418_ Dropped Sml. Storage Unit. 09419_ P-70 Sage resets P-70 Sage, system corruption cleaned. 09436_ K-01 Serf cleans the Subcomponent Replicator. 09438_ Slammed into L-61 Swordsman. 09440_ Adv. Signal Interpreter severed. 09441_ K-01 Serf cleans the Subcomponent Replicator. 09462_ Door malfunctions. 09462_ Adv. System Shield destroyed. 09463_ Hacking Suite destroyed. 09467_ XAIAF CNY0S2AW YINJMBZDI:R%Y 09471_ Slammed into S-27 Virus. 09473_ Imp. Light Armor Plating destroyed. 09476_ T-07 Excavator destroyed. 09490_ System corrupted: Energy discharge (-22). 09494_ S-27 Virus destroyed. 09494_ Coil Gun destroyed. Map ----- +----------------------------------------------------+ | ?????????????????????????????????????????????????? | | ?????????????????????????????????????????????????? | | ?????????????????????????????????????????????????? | | ?????????????????????????????????????????????????? | | ???????????????????????????????????????????# """" | | ???????????????????????????????????????????# """" | | ???????????????????????????????????????????? """" | | ??????????????????????????????????#########?? """" | | ??????????????????????????????????# #???? | | ??????????????????????????????????# #######" | | ??????????????????????????????????# T" | | ??????????????????????????????????+ "" ^^ | | ??????????????????????????????????# | | ??????????????????????????????????# ##+##### | | ??????????????????????????????????# ! #??????? | | ??????????????????????????????????## ##??????? | | ????????????????????################ #???????? | | ????????????????????# # #???????? | | ????????????????????#! """" """" / #???????? | | ????????????????????# !p"""" """" # #???????? | | ????????????????????# """"m"""" # =%#???????? | | ????????????????????# p """"p"""" # #???????? | | ????????????????????# [s"""" """" # #???????? | | ????????????????????# s%p"""" """" # #???????? | | ????????